fUST/lending_fUST_20250510
["ID","MTS","AMOUNT","RATE_DAILY","PERIOD"]
[360544181,1746873038593,-54810.84086118,8.2e-05,2]
[360544182,1746873038602,-214.8,8.214e-05,2]
[360544183,1746873038611,-633.34998742,8.219e-05,2]
[360544184,1746873038620,-400.0,8.219e-05,2]
[360544185,1746873038631,-400.0,8.219e-05,2]
[360544186,1746873038642,-400.0,8.219e-05,2]
[360544187,1746873038652,-400.0,8.219e-05,2]
[360544188,1746873038662,-400.0,8.219e-05,2]
[360544189,1746873038671,-400.0,8.219e-05,2]
[360544190,1746873038681,-164.15944408,8.219e-05,2]
[360544191,1746873038690,-352.57167525,8.219e-05,2]
[360544192,1746873038700,-400.0,8.219e-05,2]
[360544193,1746873038709,-1251.96,8.219e-05,2]
[360544194,1746873038719,-400.0,8.219e-05,2]
[360544195,1746873038730,-860.33,8.219e-05,2]
[360544196,1746873038739,-210.24700687,8.219e-05,2]
[360544198,1746873038751,-400.0,8.219e-05,2]
[360544200,1746873038760,-400.0,8.219e-05,2]
[360544202,1746873038770,-400.0,8.219e-05,2]
[360544204,1746873038781,-400.0,8.219e-05,2]
[360544206,1746873038790,-400.0,8.219e-05,2]
[360544208,1746873038799,-400.0,8.219e-05,2]
[360544210,1746873038809,-443.27,8.219e-05,2]
[360544212,1746873038819,-400.0,8.219e-05,2]
[360544214,1746873038828,-400.0,8.219e-05,2]
[360544216,1746873038840,-400.0,8.219e-05,2]
[360544218,1746873038849,-400.0,8.219e-05,2]
[360544220,1746873038859,-400.0,8.219e-05,2]
[360544222,1746873038868,-400.0,8.219e-05,2]
[360544224,1746873038877,-400.0,8.219e-05,2]
[360544226,1746873038887,-1000.0,8.219e-05,2]
[360544228,1746873038896,-400.0,8.219e-05,2]
[360544230,1746873038906,-400.0,8.219e-05,2]
[360544232,1746873038916,-1402.83,8.219e-05,2]
[360544234,1746873038927,-400.0,8.219e-05,2]
[360544236,1746873038937,-400.0,8.219e-05,2]
[360544238,1746873038948,-400.0,8.219e-05,2]
[360544240,1746873038957,-400.0,8.219e-05,2]
[360544242,1746873038967,-420.92400492,8.219e-05,2]
[360544244,1746873038977,-400.0,8.219e-05,2]
[360544246,1746873038987,-506.5338466,8.219e-05,2]
[360544248,1746873038996,-400.0,8.219e-05,2]
[360544250,1746873039007,-400.0,8.219e-05,2]
[360544252,1746873039017,-520.62,8.219e-05,2]
[360544254,1746873039026,-400.0,8.219e-05,2]
[360544256,1746873039036,-19.97799823,8.219e-05,2]
[360544259,1746873039053,-380.02200177,8.219e-05,2]
[360544261,1746873039062,-400.0,8.219e-05,2]
[360544263,1746873039072,-400.0,8.219e-05,2]
[360544265,1746873039082,-400.0,8.219e-05,2]
[360544267,1746873039091,-400.0,8.219e-05,2]
[360544269,1746873039100,-179.61176205,8.219e-05,2]
[360544279,1746873039184,-229.31457028,8.187e-05,2]
[360544281,1746873039194,-162.34528584,8.187e-05,2]
[360544282,1746873039203,-252.20823795,8.219e-05,2]
[360544284,1746873039214,-400.0,8.219e-05,2]
[360544286,1746873039224,-505.48800886,8.219e-05,2]
[360544288,1746873039233,-400.0,8.219e-05,2]
[360544290,1746873039244,-400.0,8.219e-05,2]
[360544292,1746873039253,-400.0,8.219e-05,2]
[360544294,1746873039263,-400.0,8.219e-05,2]
[360544296,1746873039272,-400.0,8.219e-05,2]
[360544298,1746873039282,-400.0,8.219e-05,2]
[360544300,1746873039291,-400.0,8.219e-05,2]
[360544302,1746873039301,-456.01,8.219e-05,2]
[360544304,1746873039310,-400.0,8.219e-05,2]
[360544306,1746873039320,-400.0,8.219e-05,2]
[360544308,1746873039329,-260.09408767,8.219e-05,2]
[360544310,1746873039339,-540.27769952,8.219e-05,2]
[360544312,1746873039349,-400.0,8.219e-05,2]
[360544313,1746873039359,-500.0,8.219e-05,2]
[360544315,1746873039369,-540.95260675,8.219e-05,2]
[360544317,1746873039379,-400.0,8.219e-05,2]
[360544319,1746873039388,-507.15437626,8.219e-05,2]
[360544321,1746873039399,-400.0,8.219e-05,2]
[360544323,1746873039409,-400.0,8.219e-05,2]
[360544325,1746873039419,-400.0,8.219e-05,2]
[360544327,1746873039428,-402.0206504,8.219e-05,2]
[360544329,1746873039438,-400.0,8.219e-05,2]
[360544331,1746873039448,-535.67623684,8.219e-05,2]
[360544333,1746873039457,-507.8456468,8.219e-05,2]
[360544335,1746873039467,-479.37,8.219e-05,2]
[360544337,1746873039476,-400.0,8.219e-05,2]
[360544339,1746873039486,-480.33,8.219e-05,2]
[360544341,1746873039495,-400.0,8.219e-05,2]
[360544343,1746873039504,-676.66,8.219e-05,2]
[360544345,1746873039517,-400.0,8.219e-05,2]
[360544347,1746873039527,-400.0,8.219e-05,2]
[360544349,1746873039537,-744.94,8.219e-05,2]
[360544351,1746873039546,-411.40010117,8.219e-05,2]
[360544353,1746873039556,-400.0,8.219e-05,2]
[360544355,1746873039565,-400.0,8.219e-05,2]
[360544357,1746873039575,-400.0,8.219e-05,2]
[360544359,1746873039586,-520.45040961,8.219e-05,2]
[360544361,1746873039595,-400.0,8.219e-05,2]
[360544363,1746873039605,-400.0,8.219e-05,2]
[360544365,1746873039615,-400.0,8.219e-05,2]
[360544367,1746873039625,-608.26,8.219e-05,2]
[360544369,1746873039634,-678.12,8.219e-05,2]
[360544371,1746873039646,-400.0,8.219e-05,2]
[360544373,1746873039655,-400.0,8.219e-05,2]
[360544375,1746873039664,-527.13,8.219e-05,2]
[360544377,1746873039674,-906.79,8.219e-05,2]
[360544379,1746873039683,-400.0,8.219e-05,2]
[360544381,1746873039692,-400.0,8.219e-05,2]
[360544383,1746873039702,-441.24,8.219e-05,2]
[360544385,1746873039712,-400.0,8.219e-05,2]
[360544387,1746873039722,-400.0,8.219e-05,2]
[360544389,1746873039731,-400.0,8.219e-05,2]
[360544391,1746873039740,-400.0,8.219e-05,2]
[360544393,1746873039750,-400.0,8.219e-05,2]
[360544395,1746873039761,-402.4625197,8.219e-05,2]
[360544397,1746873039771,-888.77,8.219e-05,2]
[360544400,1746873039781,-400.0,8.219e-05,2]
[360544402,1746873039791,-400.0,8.219e-05,2]
[360544404,1746873039801,-400.0,8.219e-05,2]
[360544406,1746873039811,-400.0,8.219e-05,2]
[360544408,1746873039821,-15.16742416,8.219e-05,2]
[360544465,1746873046614,-500.0,8.187e-05,2]
[360544466,1746873046624,-500.0,8.187e-05,2]
[360544467,1746873046634,-308.8114813,8.219e-05,2]
[360544468,1746873046643,-773.48,8.219e-05,2]
[360544469,1746873046653,-400.0,8.219e-05,2]
[360544470,1746873046663,-400.0,8.219e-05,2]
[360544471,1746873046673,-406.44917013,8.219e-05,2]
[360544472,1746873046682,-400.0,8.219e-05,2]
[360544473,1746873046691,-400.0,8.219e-05,2]
[360544474,1746873046702,-400.0,8.219e-05,2]
[360544475,1746873046711,-704.57,8.219e-05,2]
[360544476,1746873046721,-400.0,8.219e-05,2]
[360544477,1746873046730,-195.90919927,8.219e-05,2]
[360544478,1746873046743,-204.09080073,8.219e-05,2]
[360544479,1746873046752,-400.0,8.219e-05,2]
[360544480,1746873046761,-400.0,8.219e-05,2]
[360544481,1746873046771,-400.0,8.219e-05,2]
[360544482,1746873046781,-407.71,8.219e-05,2]
[360544483,1746873046791,-400.0,8.219e-05,2]
[360544484,1746873046801,-216.69920927,8.219e-05,2]
[360544485,1746873076732,-200.27442703,8.089e-05,2]
[360544486,1746873080395,-325.5455307,8.089e-05,2]
[360544487,1746873094960,-213.71111149,8.089e-05,2]
[360544488,1746873108661,-260.46893078,8.089e-05,2]
[360544489,1746873168677,-196.84766602,8.088e-05,2]
[360544493,1746873175136,-3.42676101,8.088e-05,2]
[360544496,1746873244414,196.84766602,7.988e-05,2]
[360544497,1746873363065,1125.95,8e-05,2]
[360544498,1746873413755,-402.11518459,8.1e-05,2]
[360544499,1746873424094,-177.90104503,8.1e-05,2]
[360544501,1746873438318,-211.33230852,8.1e-05,2]
[360544502,1746873441042,-161.04003483,8.1e-05,2]
[360544505,1746873450538,-160.03811822,8.1e-05,2]
[360544507,1746873454286,-322.02740022,8.1e-05,2]
[360544508,1746873467870,-300.0,8.019e-05,2]
[360544510,1746873478695,-167.16903248,8.019e-05,2]
[360544512,1746873482863,-14.89648596,8.019e-05,2]
[360544513,1746873482886,-285.10504658,8.1e-05,2]
[360544515,1746873487256,-337.86058436,8.085e-05,2]
[360544516,1746873491757,465.29174962,8.004e-05,2]
[360544521,1746873497664,-212.33126262,8.085e-05,2]
[360544523,1746873502036,-165.72350157,8.085e-05,2]
[360544525,1746873512911,-87.23698543,8.085e-05,2]
[360544526,1746873512935,-190.21071265,8.099e-05,2]
[360544527,1746873528553,-109.78928735,8.099e-05,2]
[360544528,1746873528578,-267.4304121,8.099e-05,2]
[360544529,1746873544061,-335.63020976,8.018e-05,2]
[360544530,1746873558634,-219.81690835,8.018e-05,2]
[360544532,1746873572812,-303.93010828,8.018e-05,2]
[360544534,1746873580536,254.94278424,7.999e-05,2]
[360544535,1746873587901,-373.84423185,8.018e-05,2]
[360544536,1746873602846,-196.92927326,8.018e-05,2]
[360544537,1746873617939,-15.0918968,8.018e-05,2]
[360544538,1746873617962,-159.19181385,8.098e-05,2]
[360544539,1746873633646,-140.80818615,8.098e-05,2]
[360544540,1746873633670,-35.7094459,8.098e-05,2]
[360544542,1746873649298,-418.73536061,8.098e-05,2]
[360544543,1746873653850,1000.0,7.999e-05,2]
[360544544,1746873662882,-404.74700734,8.098e-05,2]
[360544545,1746873677959,-168.19200212,8.098e-05,2]
[360544546,1746873692903,-172.61618403,8.098e-05,2]
[360544547,1746873692925,-26.66307637,8.098e-05,2]
[360544548,1746873708809,-152.92905861,8.098e-05,2]
[360544549,1746873722848,-153.95982647,8.099e-05,2]
[360544550,1746873737922,-233.25034662,8.097e-05,2]
[360544551,1746873743068,1000.0,7.998e-05,2]
[360544552,1746873753364,-247.67034325,8.096e-05,2]
[360544553,1746873753389,-18.53552428,8.096e-05,2]
[360544554,1746873754181,-248.2141291,8.096e-05,2]
[360544555,1746873754212,-17.99173843,8.096e-05,2]
[360544556,1746873767906,-201.47759625,8.096e-05,2]
[360544557,1746873783542,-290.24904074,8.095e-05,2]
[360544559,1746873793117,1094.7037603,7.153e-05,2]
[360544560,1746873795215,-9.75095926,8.095e-05,2]
[360544561,1746873795240,-172.33196476,8.096e-05,2]
[360544563,1746873797861,-108.19870056,8.096e-05,2]
[360544564,1746873797885,-137.94183144,8.096e-05,2]
[360544566,1746873802489,-283.54693375,8.096e-05,2]
[360544569,1746873807719,-78.51123481,8.096e-05,2]
[360544570,1746873807747,-95.71717708,8.096e-05,2]
[360544573,1746873809744,528.66863832,7.998e-05,2]
[360544574,1746873811640,-253.19013171,8.096e-05,2]
[360544577,1746873816375,-158.96548832,8.096e-05,2]
[360544579,1746873825272,-116.43146182,8.096e-05,2]
[360544580,1746873825295,-340.61583246,8.096e-05,2]
[360544581,1746873828970,-159.38416754,8.096e-05,2]
[360544582,1746873828995,-224.60304986,8.096e-05,2]
[360544583,1746873843459,-175.50067783,8.015e-05,2]
[360544584,1746873844675,-175.50067783,8.015e-05,2]
[360544585,1746873858134,-265.01142694,8.015e-05,2]
[360544586,1746873858157,-59.46755535,8.095e-05,2]
[360544587,1746873872923,-170.17945395,8.014e-05,2]
[360544588,1746873873514,-70.3529907,8.014e-05,2]
[360544589,1746873873539,-99.82646325,8.095e-05,2]
[360544590,1746873887803,-140.7059814,8.095e-05,2]
[360544591,1746873888122,-156.15138787,8.095e-05,2]
[360544595,1746873902664,-348.42640441,8.014e-05,2]
[360544597,1746873903427,-196.42640441,8.014e-05,2]
[360544598,1746873917881,-157.05194498,8.014e-05,2]
[360544599,1746873932933,-201.01492869,8.014e-05,2]
[360544600,1746873948473,-207.5515736,8.014e-05,2]
[360544601,1746873948498,-73.95946489,8.094e-05,2]
[360544602,1746873950629,207.5515736,7.934e-05,2]
[360544603,1746873963991,-200.02633474,8.094e-05,2]
[360544604,1746873964783,-200.02633474,8.094e-05,2]
[360544605,1746873977835,-189.02153651,8.013e-05,2]
[360544606,1746873993096,-292.04984736,8.013e-05,2]
[360544607,1746873994144,-239.24556227,8.012e-05,2]
[360544608,1746873994169,-52.80428509,8.012e-05,2]
[360544610,1746874008545,-163.55712868,8.012e-05,2]
[360544612,1746874023660,-164.21709764,8.012e-05,2]
[360544614,1746874038662,-119.42148859,8.012e-05,2]
[360544615,1746874038698,-71.92920327,8.012e-05,2]
[360544616,1746874052919,-179.23776153,8.012e-05,2]
[360544617,1746874067881,-248.8330352,8.012e-05,2]
[360544618,1746874067905,-29.95509737,8.012e-05,2]
[360544619,1746874082913,-170.61535076,8.012e-05,2]
[360544620,1746874098654,-213.88931158,8.012e-05,2]
[360544625,1746874112956,-85.54024029,8.012e-05,2]
[360544626,1746874112980,-71.15890152,8.012e-05,2]
[360544630,1746874153328,2113.1917147,7.931e-05,2]
[360544639,1746874202370,300.0,8.01e-05,2]
[360544657,1746874232685,-904.0,8.099e-05,2]
[360544658,1746874232695,-300.0,8.099e-05,2]
[360544659,1746874232705,-24581.33577026,8.1e-05,2]
[360544660,1746874232717,-10837.19342956,8.1e-05,2]
[360544674,1746874238477,-18542.00318056,8.1e-05,2]
[360544676,1746874238490,-2566.02499,8.1e-05,2]
[360544681,1746874238529,-4870.18273813,8.1e-05,2]
[360544683,1746874238541,-2101.11184565,8.1e-05,2]
[360544686,1746874238553,-7390.75415426,8.1e-05,2]
[360544719,1746874240994,-1260.87,8.1e-05,2]
[360544740,1746874308695,1000.0,7.999e-05,2]
[360544741,1746874317087,-217.80120729,8.098e-05,2]
[360544747,1746874515870,-282.19879271,8.095e-05,2]
[360544748,1746874588717,-282.19879271,8.094e-05,2]
[360544750,1746874654173,250.0,8.009e-05,2]
[360544751,1746874704932,-282.19879271,8.092e-05,2]
[360544754,1746874760724,-282.19879271,8.091e-05,2]
[360544755,1746874784619,-17.80120729,8.091e-05,2]
[360544756,1746874784642,-264.39758542,8.092e-05,2]
[360544757,1746874898850,-282.19879271,8.089e-05,2]
[360544759,1746874974181,-282.19879271,8.089e-05,2]
[360544761,1746875104996,-282.19879271,8.087e-05,2]
[360544762,1746875129639,-17.80120729,8.087e-05,2]
[360544763,1746875129666,-300.0,8.087e-05,2]
[360544764,1746875129701,-300.0,8.087e-05,2]
[360544765,1746875129728,-300.0,8.087e-05,2]
[360544766,1746875129753,-1200.0,8.087e-05,2]
[360544767,1746875129781,-500.0,8.088e-05,2]
[360544768,1746875129805,-380.0,8.088e-05,2]
[360544769,1746875129830,-500.0,8.088e-05,2]
[360544770,1746875129854,-500.0,8.088e-05,2]
[360544771,1746875129879,-387.25092905,8.088e-05,2]
[360544772,1746875129904,-428.44511253,8.088e-05,2]
[360544773,1746875129929,-500.0,8.088e-05,2]
[360544774,1746875129953,-500.0,8.088e-05,2]
[360544775,1746875129976,-500.0,8.088e-05,2]
[360544776,1746875129999,-405.84217313,8.088e-05,2]
[360544777,1746875130027,-339.8256225,8.088e-05,2]
[360544778,1746875130051,-335.57925981,8.088e-05,2]
[360544779,1746875130075,-500.0,8.088e-05,2]
[360544780,1746875130098,-7105.25569569,8.089e-05,2]
[360544802,1746875214281,11677.01143757,8e-05,2]
[360544803,1746875274880,-156.69914181,8.092e-05,2]
[360544804,1746875300102,-156.69914181,8.092e-05,2]
[360544805,1746875300796,800.0,7.992e-05,2]
[360544806,1746875300840,800.0,7.996e-05,2]
[360544807,1746875308547,674.93065321,7.9e-05,2]
[360544808,1746875323933,-156.69914181,8.092e-05,2]
[360544816,1746875352613,-156.69914181,8.091e-05,2]
[360544817,1746875353886,61826.11839082,8e-05,2]
[360544818,1746875395896,-55.06109965,8.091e-05,2]
[360544819,1746875395921,-154.13899212,8.091e-05,2]
[360544820,1746875395945,-29.90257457,8.092e-05,2]
[360544821,1746875395969,-43.09612637,8.092e-05,2]
[360544854,1746875431649,-456.90387363,8.092e-05,2]
[360544856,1746875431659,-207.4,8.095e-05,2]
[360544859,1746875431675,-300.0,8.099e-05,2]
[360544861,1746875431685,-300.0,8.099e-05,2]
[360544863,1746875431694,-347.0,8.099e-05,2]
[360544865,1746875431706,-234.90548186,8.099e-05,2]
[360544867,1746875431718,-587.87793575,8.099e-05,2]
[360544869,1746875431728,-165.91270876,8.1e-05,2]
[360544871,1746875431741,-34.01894241,8.1e-05,2]
[360544873,1746875431751,-2715.98105759,8.1e-05,2]
[360544876,1746875431763,-4450.0,8.1e-05,2]
[360544878,1746875431775,-32738.87163828,8.1e-05,2]
[360544880,1746875431788,-23774.15030403,8.1e-05,2]
[360544882,1746875431799,-196.0,8.1e-05,2]
[360544884,1746875431809,-185.0,8.1e-05,2]
[360544886,1746875431820,-320.0,8.1e-05,2]
[360544888,1746875431830,-320.0,8.1e-05,2]
[360544890,1746875431840,-320.0,8.1e-05,2]
[360544892,1746875431850,-320.0,8.1e-05,2]
[360544894,1746875431859,-320.0,8.1e-05,2]
[360544896,1746875431869,-320.0,8.1e-05,2]
[360544898,1746875431879,-320.0,8.1e-05,2]
[360544900,1746875431889,-320.0,8.1e-05,2]
[360544902,1746875431899,-320.0,8.1e-05,2]
[360544904,1746875431909,-320.0,8.1e-05,2]
[360544906,1746875431919,-320.0,8.1e-05,2]
[360544908,1746875431929,-320.0,8.1e-05,2]
[360544910,1746875431940,-320.0,8.1e-05,2]
[360544912,1746875431951,-320.0,8.1e-05,2]
[360544914,1746875431961,-320.0,8.1e-05,2]
[360544916,1746875431971,-320.0,8.1e-05,2]
[360544919,1746875431981,-320.0,8.1e-05,2]
[360544921,1746875431991,-500.0,8.1e-05,2]
[360544922,1746875432001,-275.95393859,8.1e-05,2]
[360544924,1746875432012,-166.0,8.1e-05,2]
[360544927,1746875432022,-151.0,8.1e-05,2]
[360544928,1746875432031,-166.0,8.1e-05,2]
[360544930,1746875432041,-166.0,8.1e-05,2]
[360544932,1746875432051,-360.0,8.1e-05,2]
[360544934,1746875432061,-320.0,8.1e-05,2]
[360544936,1746875432070,-320.0,8.1e-05,2]
[360544938,1746875432080,-360.0,8.1e-05,2]
[360544940,1746875432090,-320.0,8.1e-05,2]
[360544942,1746875432100,-360.0,8.1e-05,2]
[360544944,1746875432110,-360.0,8.1e-05,2]
[360544946,1746875432119,-360.0,8.1e-05,2]
[360544948,1746875432129,-368.08710941,8.1e-05,2]
[360544950,1746875432140,-320.0,8.1e-05,2]
[360544952,1746875432149,-360.0,8.1e-05,2]
[360544954,1746875432159,-320.0,8.1e-05,2]
[360544956,1746875432169,-360.0,8.1e-05,2]
[360544958,1746875432179,-320.0,8.1e-05,2]
[360544960,1746875432189,-311.81196327,8.1e-05,2]
[360544962,1746875432198,-320.0,8.1e-05,2]
[360544964,1746875432210,-360.0,8.1e-05,2]
[360544966,1746875432219,-320.0,8.1e-05,2]
[360544967,1746875432230,-360.0,8.1e-05,2]
[360544969,1746875432240,-320.0,8.1e-05,2]
[360544971,1746875432250,-360.0,8.1e-05,2]
[360544973,1746875432259,-320.0,8.1e-05,2]
[360544975,1746875432268,-360.0,8.1e-05,2]
[360544977,1746875432278,-470.6681338,8.1e-05,2]
[360544979,1746875432290,-360.0,8.1e-05,2]
[360544981,1746875432301,-320.0,8.1e-05,2]
[360544983,1746875432311,-360.0,8.1e-05,2]
[360544985,1746875432320,-360.0,8.1e-05,2]
[360544987,1746875432331,-320.0,8.1e-05,2]
[360544989,1746875432341,-360.0,8.1e-05,2]
[360544991,1746875432351,-320.0,8.1e-05,2]
[360544993,1746875432361,-360.0,8.1e-05,2]
[360544995,1746875432371,-320.0,8.1e-05,2]
[360544997,1746875432380,-360.0,8.1e-05,2]
[360544999,1746875432390,-320.0,8.1e-05,2]
[360545001,1746875432400,-360.0,8.1e-05,2]
[360545003,1746875432411,-320.0,8.1e-05,2]
[360545005,1746875432421,-360.0,8.1e-05,2]
[360545007,1746875432432,-320.0,8.1e-05,2]
[360545009,1746875432441,-479.39665784,8.1e-05,2]
[360545033,1746875432691,-320.0,8.1e-05,2]
[360545035,1746875432703,-360.0,8.1e-05,2]
[360545037,1746875432716,-320.0,8.1e-05,2]
[360545039,1746875432726,-372.1141326,8.1e-05,2]
[360545041,1746875432735,-320.0,8.1e-05,2]
[360545043,1746875432745,-320.0,8.1e-05,2]
[360545045,1746875432757,-170.32099554,8.1e-05,2]
[360545047,1746875432767,-204.17367723,8.1e-05,2]
[360545049,1746875432777,-360.0,8.1e-05,2]
[360545051,1746875432789,-360.0,8.1e-05,2]
[360545053,1746875432800,-360.0,8.1e-05,2]
[360545055,1746875432810,-25266.28352816,8.1e-05,2]
[360545057,1746875432819,-360.0,8.1e-05,2]
[360545059,1746875432829,-360.0,8.1e-05,2]
[360545061,1746875432839,-320.0,8.1e-05,2]
[360545062,1746875432850,-320.0,8.1e-05,2]
[360545064,1746875432859,-320.0,8.1e-05,2]
[360545066,1746875432869,-320.0,8.1e-05,2]
[360545068,1746875432879,-800.0,8.163e-05,2]
[360545070,1746875432890,-505.78542133,8.193e-05,2]
[360545072,1746875432899,-643.55515777,8.193e-05,2]
[360545074,1746875432909,-500.0,8.193e-05,2]
[360545076,1746875432919,-593.73657586,8.193e-05,2]
[360545078,1746875432929,-500.0,8.193e-05,2]
[360545080,1746875432939,-500.0,8.193e-05,2]
[360545082,1746875432948,-500.0,8.193e-05,2]
[360545084,1746875432958,-500.0,8.193e-05,2]
[360545086,1746875432968,-556.5710869,8.193e-05,2]
[360545088,1746875432978,-500.0,8.193e-05,2]
[360545090,1746875432988,-500.0,8.193e-05,2]
[360545092,1746875432998,-502.56205692,8.193e-05,2]
[360545094,1746875433009,-500.0,8.193e-05,2]
[360545096,1746875433019,-500.0,8.193e-05,2]
[360545098,1746875433029,-500.0,8.193e-05,2]
[360545100,1746875433039,-500.0,8.193e-05,2]
[360545102,1746875433049,-500.0,8.193e-05,2]
[360545104,1746875433059,-500.0,8.193e-05,2]
[360545106,1746875433070,-500.0,8.193e-05,2]
[360545108,1746875433079,-500.0,8.193e-05,2]
[360545110,1746875433089,-500.0,8.193e-05,2]
[360545111,1746875433100,-505.67096782,8.193e-05,2]
[360545114,1746875433110,-500.0,8.193e-05,2]
[360545117,1746875433133,-500.0,8.193e-05,2]
[360545119,1746875433144,-500.0,8.193e-05,2]
[360545121,1746875433155,-500.0,8.193e-05,2]
[360545123,1746875433166,-500.0,8.193e-05,2]
[360545125,1746875433177,-208.56164251,8.193e-05,2]
[360545127,1746875433188,-500.0,8.193e-05,2]
[360545129,1746875433198,-500.0,8.193e-05,2]
[360545131,1746875433209,-500.0,8.193e-05,2]
[360545133,1746875433219,-500.0,8.193e-05,2]
[360545135,1746875433230,-500.0,8.193e-05,2]
[360545137,1746875433241,-527.72156473,8.193e-05,2]
[360545139,1746875433252,-500.0,8.193e-05,2]
[360545142,1746875433263,-151.867443,8.193e-05,2]
[360545144,1746875433273,-151.0,8.193e-05,2]
[360545146,1746875433284,-800.0,8.198e-05,2]
[360545148,1746875433295,-308.4117063,8.2e-05,2]
[360545150,1746875433305,-568.8061225,8.2e-05,2]
[360545152,1746875433315,-567.0126341,8.2e-05,2]
[360545154,1746875433325,-800.0,8.206e-05,2]
[360545156,1746875433335,-225.301,8.208e-05,2]
[360545158,1746875433347,-44263.54273416,8.219e-05,2]
[360545161,1746875433363,-4395.3340464,8.219e-05,2]
[360545192,1746875437691,-320.0,8.1e-05,2]
[360545193,1746875437702,-1379.37373264,8.1e-05,2]
[360545194,1746875437716,-268.30337225,8.219e-05,2]
[360545204,1746875439944,-1379.37373262,8.13e-05,2]
[360545205,1746875439954,-42947.49727565,8.219e-05,2]
[360545229,1746875443839,-319.89584567,8.16e-05,2]
[360545240,1746875446012,-482.7826615,8.16e-05,2]
[360545241,1746875446283,-160.06951742,8.16e-05,2]
[360545242,1746875446298,-416.62570803,8.16e-05,2]
[360545243,1746875446307,-1379.37373262,8.189e-05,2]
[360545244,1746875446317,-3194.74814954,8.219e-05,2]
[360545248,1746875555708,-156.79811284,8.099e-05,2]
[360545250,1746875616051,-156.79811284,8.099e-05,2]
[360545251,1746875620340,256.9998418,7.212e-05,2]
[360545252,1746875660526,800.0,7.922e-05,2]
[360545253,1746875667083,-156.79811284,8.099e-05,2]
[360545254,1746875702263,14986.9873611,7.397e-05,2]
[360545256,1746875720545,800.0,7.983e-05,2]
[360545257,1746875720632,800.0,7.932e-05,2]
[360545260,1746875780775,800.0,7.922e-05,2]
[360545261,1746875784520,-281.63672314,8.069e-05,2]
[360545262,1746875809343,306.298747,7.177e-05,2]
[360545264,1746875854312,-281.63672314,8.069e-05,2]
[360545265,1746875960664,800.0,7.909e-05,2]
[360545266,1746875960702,800.0,7.885e-05,2]
[360545267,1746875960762,800.0,7.976e-05,2]
[360545268,1746875961025,800.0,7.889e-05,2]
[360545269,1746875961287,800.0,7.964e-05,2]
[360545270,1746875988484,1173.0,0.00022,120]
[360545271,1746876016139,13303.0074249,7.081e-05,2]
[360545272,1746876060305,151.0,0.00022,120]
[360545273,1746876072326,644.5368203,7.076e-05,2]
[360545274,1746876089744,461.5108713,7.726e-05,2]
[360545275,1746876089876,461.5108713,7.753e-05,2]
[360545276,1746876090001,461.5108713,7.808e-05,2]
[360545277,1746876090162,461.5108713,7.836e-05,2]
[360545278,1746876090274,461.5108713,7.89e-05,2]
[360545279,1746876090381,461.5108713,7.918e-05,2]
[360545280,1746876090819,461.5108713,7.945e-05,2]
[360545281,1746876090959,461.5108713,8e-05,2]
[360545282,1746876128817,-206.21698277,8.026e-05,2]
[360545283,1746876180109,-72.79602959,8.026e-05,2]
[360545284,1746876180132,-133.42095318,8.027e-05,2]
[360545285,1746876217139,-206.21698277,8.027e-05,2]
[360545286,1746876243887,-206.21698277,8.027e-05,2]
[360545287,1746876260560,800.0,7.873e-05,2]
[360545288,1746876279303,-206.21698277,8.027e-05,2]
[360545291,1746876309162,-47.92809851,8.027e-05,2]
[360545292,1746876309187,-158.28888426,8.027e-05,2]
[360545294,1746876326894,-163.49140848,8.027e-05,2]
[360545298,1746876357253,-139.73057856,8.027e-05,2]
[360545299,1746876357277,-23.76082992,8.041e-05,2]
[360545301,1746876374004,178.54493453,7.961e-05,2]
[360545307,1746876440759,800.0,7.941e-05,2]
[360545308,1746876440793,800.0,7.851e-05,2]
[360545309,1746876440834,800.0,7.874e-05,2]
[360545318,1746876480990,-277.44769808,8.041e-05,2]
[360545321,1746876522070,-277.44769808,8.041e-05,2]
[360545331,1746876567983,159.72355772,8e-05,7]
[360545332,1746876568711,-221.34377392,8.041e-05,2]
[360545333,1746876568732,-56.10392416,8.049e-05,2]
[360545338,1746876595931,-277.44769808,8.049e-05,2]
[360545342,1746876620968,800.0,7.923e-05,2]
[360545343,1746876621136,800.0,7.929e-05,2]